bitfinex/quotes_BTCUSD_20251224
["timestamp","ask_amount","ask_price","bid_price","bid_amount"]
[1766537731316,0.000549,87636.0,87633.0,0.01141122]
[1766537731806,0.12992994,87641.0,87632.0,0.01141135]
[1766537732022,0.00055,87632.0,87630.0,0.44522826]
[1766537732210,0.00055,87632.0,87629.0,0.06847023]
[1766537732415,0.12889044,87639.0,87630.0,0.01141161]
[1766537732819,0.11748,87639.0,87632.0,0.01144]
[1766537733032,0.06846192,87640.0,87632.0,0.01144]
[1766537733259,0.06846192,87640.0,87629.0,0.01141174]
[1766537733260,0.11748,87639.0,87629.0,0.01141174]
[1766537733467,0.01141096,87635.0,87630.0,0.01144]
[1766537733592,0.05705287,87638.0,87630.0,0.01144]
[1766537733593,0.11748,87634.0,87630.0,0.01144]
[1766537734005,0.11748,87634.0,87629.0,0.01141174]
[1766537734208,0.11748,87634.0,87628.0,0.01141187]
[1766537734407,0.11748,87634.0,87629.0,0.01141174]
[1766537735668,0.116931,87634.0,87630.0,0.01141161]
[1766537736087,0.116931,87634.0,87631.0,0.01141148]
[1766537736632,0.13143,87640.0,87632.0,0.01141135]
[1766537737075,0.000549,87632.0,87628.0,1.87e-06]
[1766537737280,0.11999,87631.0,87628.0,0.01141187]
[1766537737455,0.11999,87631.0,87626.0,2.13e-06]
[1766537737659,0.11999,87631.0,87628.0,0.01141187]
[1766537738078,0.11999,87631.0,87628.0,0.0058689]
[1766537743342,0.11999,87631.0,87628.0,0.0629279]
[1766537743537,0.11999,87631.0,87627.0,0.011412]
[1766537743982,0.11999,87631.0,87628.0,0.01141187]
[1766537744558,0.000549,87628.0,87625.0,3.18e-06]
[1766537744764,0.11999,87631.0,87625.0,0.01141544]
[1766537745628,0.11999,87631.0,87625.0,0.06847636]
[1766537746021,0.11999,87631.0,87628.0,0.01141187]
[1766537748762,0.11999,87631.0,87624.0,0.01144]
[1766537748763,0.02512078,87629.0,87610.0,0.01144]
[1766537748962,0.11999,87622.0,87614.0,0.0114137]
[1766537749165,0.11999,87622.0,87613.0,0.01141383]
[1766537749166,0.01144,87621.0,87613.0,0.01141383]
[1766537749339,0.13143,87621.0,87613.0,0.01141383]
[1766537749523,0.13143,87621.0,87614.0,0.0114137]
[1766537749726,0.01011777,87628.0,87622.0,0.13141265]
[1766537749966,0.01141083,87636.0,87622.0,0.13141265]
[1766537749967,0.01144,87634.0,87622.0,0.13141265]
[1766537750145,0.02285083,87634.0,87624.0,0.18847427]
[1766537750349,0.02285083,87634.0,87624.0,0.13141239]
[1766537750579,0.02285083,87634.0,87625.0,0.01141226]
[1766537750844,0.01144,87634.0,87628.0,0.01141187]
[1766537751265,0.01144,87634.0,87631.0,0.01141148]
[1766537751457,0.01144,87634.0,87630.0,0.01141161]
[1766537752000,0.01144,87634.0,87628.0,0.01141187]
[1766537752462,0.01144,87637.0,87634.0,0.12]
[1766537753071,0.01144,87637.0,87634.0,0.119451]
[1766537755150,0.01144,87637.0,87632.0,0.01141135]
[1766537755302,0.010891,87637.0,87633.0,0.13141122]
[1766537756137,0.00896177,87637.0,87634.0,0.01141109]
[1766537756340,1.77e-06,87637.0,87635.0,0.05705425]
[1766537756542,1.77e-06,87637.0,87634.0,0.18846607]
[1766537756721,0.00034976,87641.0,87634.0,0.18846607]
[1766537756722,0.00034976,87641.0,87636.0,0.01141083]
[1766537757119,0.00034976,87641.0,87637.0,0.0114107]
[1766537757322,0.00034976,87641.0,87638.0,0.01141057]
[1766537758423,0.00039866,87641.0,87638.0,0.01141057]
[1766537758619,0.00039866,87641.0,87637.0,0.0114107]
[1766537759212,0.00039866,87641.0,87638.0,0.01141057]
[1766537759419,0.00039866,87641.0,87638.0,0.12648057]
[1766537759625,0.00039866,87641.0,87637.0,0.0114107]
[1766537759844,0.00039866,87641.0,87636.0,0.01141083]
[1766537760002,0.00039866,87641.0,87634.0,0.12648109]
[1766537760602,0.00039866,87641.0,87634.0,0.11507]
[1766537760803,0.01180884,87641.0,87634.0,0.11507]
[1766537761006,0.000549,87634.0,87630.0,0.01144]
[1766537761478,0.000549,87634.0,87630.0,0.02285161]
[1766537761682,0.00039866,87641.0,87633.0,0.01141122]
[1766537762121,0.01180884,87641.0,87632.0,0.01141135]
[1766537762292,0.00039866,87641.0,87632.0,0.01141135]
[1766537762938,0.01141031,87640.0,87631.0,0.11507]
[1766537763117,0.13620044,87639.0,87630.0,0.01144]
[1766537763322,0.0114107,87637.0,87630.0,0.01144]
[1766537763535,0.01141057,87638.0,87628.0,0.02285187]
[1766537763682,0.0114107,87637.0,87628.0,0.01144]
[1766537764049,0.01141083,87636.0,87628.0,0.01144]
[1766537764493,0.12479,87631.0,87626.0,0.01144]
[1766537768965,0.01141109,87634.0,87626.0,0.01144]
[1766537769173,0.13620096,87635.0,87626.0,0.01144]
[1766537769383,0.12479,87635.0,87626.0,0.01144]
[1766537769586,0.13620096,87635.0,87626.0,0.02285213]
[1766537769790,0.13620096,87635.0,87626.0,0.01144]
[1766537770479,0.01141109,87634.0,87626.0,0.01144]
[1766537770758,0.13620096,87635.0,87626.0,0.01144]
[1766537770961,0.13620096,87635.0,87626.0,0.02285213]
[1766537771134,0.13620096,87635.0,87626.0,0.01144]
[1766537771346,0.13620096,87635.0,87622.0,0.02285265]
[1766537771347,0.12479,87630.0,87622.0,0.02285265]
[1766537771728,0.12479,87630.0,87623.0,0.01141252]
[1766537773446,0.12479,87630.0,87624.0,0.01141239]
[1766537773652,0.12479,87630.0,87622.0,0.02285265]
[1766537774431,0.12479,87630.0,87622.0,0.01144]
[1766537774806,0.01141174,87629.0,87620.0,0.01144]
[1766537775025,0.01141174,87629.0,87620.0,0.02285291]
[1766537775232,0.01141174,87629.0,87620.0,0.01144]
[1766537775356,0.13620161,87630.0,87620.0,0.02285291]
[1766537775766,0.01141174,87629.0,87620.0,0.01144]
[1766537776190,0.07990875,87632.0,87615.0,0.12651]
[1766537776191,0.01141265,87622.0,87615.0,0.12651]
[1766537776387,0.13620252,87623.0,87614.0,0.0114137]
[1766537776609,0.12479,87623.0,87614.0,0.0114137]
[1766537776810,0.13620252,87623.0,87614.0,0.0114137]
[1766537777156,0.13620265,87622.0,87612.0,0.02285396]
[1766537777327,0.13620265,87622.0,87612.0,0.01144]
[1766537777537,0.01141278,87621.0,87612.0,0.01144]
[1766537777743,0.01141291,87620.0,87612.0,0.01144]
[1766537778068,0.01141344,87616.0,87607.0,0.01141461]
[1766537778271,0.13620331,87617.0,87608.0,0.01144]
[1766537778689,0.13620331,87617.0,87608.0,0.02285448]
[1766537779274,0.12479,87617.0,87609.0,0.01141435]
[1766537779455,0.12479,87617.0,87608.0,0.02285448]
[1766537779632,0.13620357,87615.0,87608.0,0.01144]
[1766537779837,0.01141383,87613.0,87608.0,0.01144]
[1766537780063,0.0114137,87614.0,87608.0,0.01144]
[1766537780433,0.13620357,87615.0,87608.0,0.01144]
[1766537780636,0.12479,87615.0,87608.0,0.01144]
[1766537780871,0.05706785,87615.0,87608.0,0.01144]
[1766537781072,0.1362037,87614.0,87605.0,0.02285487]
[1766537781270,0.12479,87612.0,87605.0,0.01144]
[1766537781460,0.12479,87612.0,87603.0,0.01141513]
[1766537781864,0.12479,87612.0,87605.0,0.01141487]
[1766537784493,0.12479,87612.0,87606.0,0.01141474]
[1766537785427,0.12479,87612.0,87604.0,0.011415]
[1766537786732,0.12479,87612.0,87603.0,0.01141513]
[1766537787574,0.12479,87612.0,87604.0,0.011415]
[1766537787956,0.12479,87612.0,87603.0,0.01141513]
[1766537788149,0.01141409,87611.0,87602.0,0.12651]
[1766537788737,0.01141409,87611.0,87602.0,0.13792526]
[1766537789375,0.13620396,87612.0,87602.0,0.13792526]
[1766537790135,0.13620396,87612.0,87603.0,0.01141513]
[1766537790341,0.12479,87612.0,87603.0,0.01141513]
[1766537790488,0.13620396,87612.0,87602.0,0.13792526]
[1766537790928,0.13620396,87612.0,87603.0,0.01141513]
[1766537791299,0.01141409,87611.0,87602.0,0.13792526]
[1766537792205,0.12479,87612.0,87604.0,0.011415]
[1766537792425,0.12479,87612.0,87603.0,0.01141513]
[1766537793191,0.01141383,87613.0,87604.0,0.11263]
[1766537793810,0.01141383,87613.0,87604.0,0.124045]
[1766537793989,0.0114137,87614.0,87604.0,0.124045]
[1766537794532,0.01141396,87612.0,87604.0,0.11263]
[1766537794928,0.01141409,87611.0,87604.0,0.11263]
[1766537796653,0.01141396,87612.0,87604.0,0.11263]
[1766537797014,0.01141383,87613.0,87604.0,0.11263]
[1766537797217,0.0114137,87614.0,87604.0,0.124045]
[1766537797419,0.0309746,87646.0,87623.0,0.11672]
[1766537797621,0.01141031,87640.0,87629.0,0.11672]
[1766537797820,0.01175994,87641.0,87629.0,0.11672]
[1766537798026,0.00034976,87641.0,87633.0,0.01141122]
[1766537798212,0.1262,87642.0,87639.0,0.01141044]
[1766537798213,0.11325801,87642.0,87639.0,0.01141044]
[1766537798408,0.00262,87641.0,87638.0,0.01141057]
[1766537798630,0.01154,87643.0,87641.0,0.001099]
[1766537799116,0.01154,87643.0,87637.0,0.0114107]
[1766537799504,0.01154,87643.0,87638.0,0.01141057]
[1766537799714,0.01154,87643.0,87637.0,0.0114107]
[1766537799917,0.01154,87643.0,87638.0,0.01141057]
[1766537800131,0.01154,87643.0,87639.0,0.01141044]
[1766537800337,0.01154,87643.0,87638.0,0.01141057]
[1766537800770,0.01154,87643.0,87636.0,0.11672]
[1766537800975,0.01141005,87642.0,87636.0,0.00010719]
[1766537801203,0.11476,87642.0,87633.0,0.01141122]
[1766537801404,0.01370904,87639.0,87634.0,0.01141109]
[1766537801604,0.01370904,87639.0,87633.0,0.01141122]
[1766537801840,0.01370904,87639.0,87634.0,0.01141109]
[1766537803341,0.12846904,87639.0,87633.0,0.01141122]
[1766537803611,0.12846904,87639.0,87632.0,0.01141135]
[1766537803825,0.12846904,87639.0,87634.0,0.01141109]
[1766537804029,0.12846904,87639.0,87633.0,0.01141122]
[1766537804870,0.12846904,87639.0,87634.0,0.01141109]
[1766537806723,0.12846904,87639.0,87635.0,0.01141096]
[1766537806875,0.12792004,87639.0,87636.0,0.01141083]
[1766537807085,6.93e-05,87642.0,87639.0,0.01141044]
[1766537807274,6.93e-05,87642.0,87639.0,0.06846239]
[1766537807495,0.01154,87643.0,87639.0,0.06846239]
[1766537807496,3e-07,87643.0,87640.0,0.12813031]
[1766537808169,0.0002,87646.0,87642.0,0.01141005]
[1766537808780,0.0002,87646.0,87643.0,0.01140992]
[1766537809207,0.0002,87646.0,87642.0,0.01141005]
[1766537809583,0.0002,87646.0,87643.0,0.01140992]
[1766537809786,0.0002,87646.0,87642.0,0.01141005]
[1766537810528,0.0002,87646.0,87643.0,0.01140992]
[1766537811071,0.0002,87652.0,87650.0,0.05704506]
[1766537811387,0.0002,87653.0,87650.0,0.01140901]
[1766537811563,0.0002,87653.0,87649.0,0.01140914]
[1766537811783,0.0002,87653.0,87648.0,0.01140927]
[1766537811983,0.0002,87653.0,87650.0,0.01140901]
[1766537812278,0.0002,87653.0,87648.0,0.01140927]
[1766537812422,0.0002,87653.0,87650.0,0.01140901]
[1766537812813,0.0002,87653.0,87646.0,0.02284953]
[1766537813009,0.0002,87653.0,87646.0,0.01144]
[1766537813328,0.0002,87653.0,87646.0,0.02284953]
[1766537813522,0.0002,87653.0,87650.0,0.01140901]
[1766537813766,0.00024075,87653.0,87649.0,0.01140914]
[1766537813970,0.00024075,87653.0,87650.0,0.01140901]
[1766537814113,0.00015975,87653.0,87650.0,0.01140901]
[1766537815153,0.00015975,87653.0,87650.0,0.06845351]
[1766537815754,0.000549,87650.0,87646.0,0.02284953]
[1766537815958,0.000549,87650.0,87646.0,0.01144]
[1766537816198,0.00015975,87653.0,87646.0,0.01144]
[1766537816417,0.01140888,87651.0,87646.0,0.01144]
[1766537816921,0.01140888,87651.0,87646.0,0.010891]
[1766537817550,0.01156837,87653.0,87646.0,0.010891]
[1766537817759,0.01140875,87652.0,87646.0,0.010891]
[1766537818318,0.01156837,87653.0,87646.0,0.010891]
[1766537818717,0.00015975,87653.0,87646.0,0.010891]
[1766537818974,0.01156837,87653.0,87646.0,0.010891]
[1766537819926,0.01140875,87652.0,87646.0,0.010891]
[1766537820136,0.00015975,87653.0,87646.0,0.010891]
[1766537820554,0.01140888,87651.0,87643.0,0.01144]
[1766537820757,0.13090875,87652.0,87643.0,0.01144]
[1766537820965,0.01140927,87648.0,87643.0,0.01144]
[1766537821580,0.01140914,87649.0,87643.0,0.01144]
[1766537822362,0.01140901,87650.0,87643.0,0.01144]
[1766537822575,0.01140914,87649.0,87643.0,0.01144]
[1766537822785,0.00055,87643.0,87642.0,0.01144]
[1766537823396,0.0114094,87647.0,87642.0,0.01144]
[1766537824264,0.01140953,87646.0,87637.0,0.11923]
[1766537824479,0.01140953,87646.0,87639.0,0.01144]
[1766537824480,0.13090979,87644.0,87639.0,0.01144]
[1766537824679,0.1195,87644.0,87639.0,0.01144]
[1766537824808,0.01140966,87645.0,87639.0,0.01144]
[1766537825019,0.0114094,87647.0,87639.0,0.01144]
[1766537825236,0.01140953,87646.0,87639.0,0.01144]
[1766537825443,0.0114094,87647.0,87639.0,0.01144]
[1766537826178,0.01140979,87644.0,87636.0,0.01144]
[1766537826516,0.01140953,87646.0,87637.0,0.0114107]
[1766537827300,0.01140966,87645.0,87636.0,0.02285083]
[1766537827503,0.01140953,87646.0,87637.0,0.0114107]
[1766537828152,0.0114094,87647.0,87638.0,0.01141057]
[1766537828357,0.02284888,87651.0,87642.0,0.11923]
[1766537828489,0.02284888,87651.0,87642.0,0.13064005]
[1766537828691,0.1195,87650.0,87639.0,0.01141044]
[1766537828888,0.01140914,87649.0,87639.0,0.01141044]
[1766537829101,0.13090914,87649.0,87639.0,0.01141044]
[1766537829463,0.1195,87646.0,87637.0,0.0114107]
[1766537830166,0.13090953,87646.0,87636.0,0.02285083]
[1766537830291,0.0114094,87647.0,87638.0,0.01141057]
[1766537830485,0.01140953,87646.0,87637.0,0.1306407]
[1766537831102,0.01140966,87645.0,87637.0,0.11923]
[1766537831316,0.01140979,87644.0,87637.0,0.11923]
[1766537831519,0.01140979,87644.0,87598.0,0.14365229]
[1766537831520,0.01370904,87633.0,87598.0,0.14365229]
[1766537831755,0.01370904,87633.0,87572.0,0.01370904]
[1766537831756,0.03609,87611.0,87604.0,0.011415]
[1766537831913,0.010891,87610.0,87605.0,0.01141487]
[1766537832115,0.00971837,87616.0,87605.0,0.01141487]
[1766537832314,0.00172163,87615.0,87607.0,0.11923]
[1766537832542,0.00172163,87615.0,87605.0,0.01141487]
[1766537832543,0.01141174,87629.0,87618.0,0.13064317]
[1766537832713,0.00857599,87628.0,87624.0,0.11923]
[1766537832916,0.00358701,87628.0,87624.0,0.1192993]
[1766537833258,0.011412,87627.0,87624.0,0.1187503]
[1766537833467,0.06847208,87627.0,87624.0,0.1187503]
[1766537835433,0.05706134,87625.0,87624.0,0.1187503]
[1766537835836,0.01141161,87630.0,87624.0,0.1187503]
[1766537835837,0.1195,87644.0,87626.0,0.11923]
[1766537836060,0.01141109,87634.0,87626.0,0.11923]
[1766537836235,1.09e-06,87634.0,87626.0,0.11923]
[1766537836437,1.09e-06,87634.0,87626.0,0.13064213]
[1766537836641,0.01141218,87634.0,87626.0,0.13064213]
[1766537836845,0.01141148,87631.0,87626.0,0.11923]
[1766537838059,0.05705613,87633.0,87626.0,0.11923]
[1766537838278,0.05705613,87633.0,87631.0,0.000549]
[1766537838527,0.01141122,87633.0,87626.0,0.11923]
[1766537838945,0.01141218,87634.0,87626.0,0.11923]
[1766537839489,0.01141044,87639.0,87628.0,0.11923]
[1766537839610,0.01141044,87639.0,87635.0,0.11923]
[1766537839812,5.7e-07,87638.0,87635.0,0.11923]
[1766537840268,1.01e-06,87639.0,87635.0,0.11923]
[1766537840517,0.01141057,87638.0,87635.0,0.11923]
[1766537840730,0.06846449,87638.0,87635.0,0.11923]
[1766537841016,0.01141114,87638.0,87635.0,0.11923]
[1766537841167,5.7e-07,87638.0,87635.0,0.11923]
[1766537841738,0.01141114,87638.0,87635.0,0.11923]
[1766537841913,5.7e-07,87638.0,87635.0,0.11923]
[1766537842463,0.01141114,87638.0,87635.0,0.11923]
[1766537842665,5.7e-07,87638.0,87635.0,0.11923]
[1766537843123,5.7e-07,87638.0,87635.0,0.13064096]
[1766537843326,0.06845391,87651.0,87640.0,0.0433]
[1766537843531,0.06845391,87651.0,87640.0,0.47661864]
[1766537843532,0.02284914,87649.0,87640.0,0.47661864]
[1766537843740,0.01140927,87648.0,87640.0,0.47661864]
[1766537844435,0.01144,87649.0,87640.0,0.48802895]
[1766537844843,0.0114094,87647.0,87640.0,0.47661864]
[1766537845052,0.01140927,87648.0,87640.0,0.47661864]
[1766537845410,0.01140927,87648.0,87640.0,0.0433]
[1766537845877,0.0114094,87647.0,87640.0,0.0433]
[1766537846428,0.01140953,87646.0,87640.0,0.0433]
[1766537847592,0.0114094,87647.0,87640.0,0.0433]
[1766537849102,0.01140953,87646.0,87640.0,0.0433]
[1766537849307,0.01140966,87645.0,87640.0,0.0433]
[1766537849512,0.01140953,87646.0,87640.0,0.0433]
[1766537850522,0.0114094,87647.0,87640.0,0.0433]
[1766537850832,0.01140927,87648.0,87640.0,0.0433]
[1766537851190,0.0114094,87647.0,87640.0,0.0433]
[1766537851398,0.01140927,87648.0,87639.0,0.01141044]
[1766537851602,0.01140927,87648.0,87638.0,0.02285057]
[1766537852149,0.02284927,87648.0,87638.0,0.02285057]
[1766537852320,0.02284927,87648.0,87638.0,0.01144]
[1766537852490,0.0114094,87647.0,87638.0,0.02285057]
[1766537852692,0.0114094,87647.0,87638.0,0.01144]
[1766537853534,0.0114094,87647.0,87638.0,0.02285057]
[1766537853894,0.01140953,87646.0,87638.0,0.01144]
[1766537854318,0.01140992,87643.0,87638.0,0.01144]
[1766537854523,0.01140966,87645.0,87638.0,0.01144]
[1766537854726,0.01140966,87645.0,87638.0,0.01128752]
[1766537855151,0.01140953,87646.0,87638.0,0.01128752]
[1766537855355,0.02284927,87648.0,87638.0,0.02269809]
[1766537855646,0.01140953,87646.0,87638.0,0.01128752]
[1766537855877,0.0114094,87647.0,87638.0,0.01128752]
[1766537856198,0.0114094,87647.0,87638.0,0.02269809]
[1766537856521,0.02284927,87648.0,87638.0,0.02269809]
[1766537856758,0.01144,87648.0,87639.0,0.01141044]
[1766537857095,0.01144,87648.0,87640.0,0.01141031]
[1766537857713,0.01144,87648.0,87644.0,0.01140979]
[1766537857935,0.010891,87648.0,87645.0,0.06845738]
[1766537858145,0.000119,87653.0,87647.0,0.0114094]
[1766537858146,0.01144,87649.0,87647.0,0.0114094]
[1766537858346,0.01144,87649.0,87645.0,0.01140966]
[1766537858555,0.01144,87649.0,87646.0,0.01140953]
[1766537858956,0.01144,87649.0,87645.0,0.01140966]
[1766537859315,0.01144,87649.0,87646.0,0.01140953]
[1766537861068,0.121769,87653.0,87648.0,0.01140927]
[1766537861283,0.000119,87653.0,87651.0,0.05704441]
[1766537863480,0.000119,87653.0,87651.0,0.05597337]
[1766537866481,0.12165,87659.0,87651.0,0.05597337]
[1766537866482,0.03077866,87678.0,87672.0,0.01140615]
[1766537866687,0.06140815,87689.0,87637.0,0.45640738]
[1766537866688,0.12165,87674.0,87667.0,0.0114068]
[1766537867510,0.12165,87666.0,87664.0,0.01144]
[1766537868698,0.12165,87666.0,87663.0,0.01140732]
[1766537868899,0.12165,87673.0,87664.0,0.01140719]
[1766537869508,0.13309,87672.0,87664.0,0.01140719]
[1766537870030,0.13309,87672.0,87665.0,0.01140706]
[1766537870554,0.13309,87672.0,87664.0,0.01140719]
[1766537871378,0.01370904,87673.0,87588.0,0.20380847]
[1766537871591,0.01140419,87687.0,87678.0,0.01140536]
[1766537871798,0.12165,87687.0,87678.0,0.01140536]
[1766537872079,0.12165,87687.0,87677.0,0.01140549]
[1766537872279,0.12165,87687.0,87678.0,0.01140536]
[1766537872481,0.12165,87685.0,87678.0,0.01140536]
[1766537872691,0.00068653,87679.0,87678.0,0.0684322]
[1766537872903,0.01148,87684.0,87681.0,0.01140497]
[1766537873340,0.12165,87685.0,87679.0,0.01140523]
[1766537873518,0.000549,87681.0,87679.0,0.01140523]
[1766537873867,0.01148,87684.0,87680.0,0.0114051]
[1766537874632,0.000549,87680.0,87674.0,0.01140589]
[1766537874853,0.000549,87680.0,87677.0,0.01140549]
[1766537875067,0.01148,87684.0,87679.0,0.01140523]
[1766537875222,0.01148,87684.0,87678.0,0.01140536]
[1766537875407,0.01148,87684.0,87679.0,0.01140523]
[1766537875819,0.000549,87679.0,87678.0,0.01140536]
[1766537876251,0.01148,87684.0,87677.0,0.01140549]
[1766537876445,0.01148,87684.0,87678.0,0.01140536]
[1766537876654,0.01148,87684.0,87678.0,0.01085536]
[1766537876872,0.13313,87684.0,87676.0,0.01140562]
[1766537877026,0.13313,87684.0,87675.0,0.01140575]
[1766537877235,0.13313,87684.0,87676.0,0.01140562]
[1766537877637,0.13313,87684.0,87677.0,0.01140549]
[1766537877844,0.13313,87684.0,87678.0,0.01140536]
[1766537878328,0.13313,87684.0,87677.0,0.01140549]
[1766537878529,0.13313,87684.0,87677.0,0.01085649]
[1766537880169,0.13313,87684.0,87678.0,0.01140536]
[1766537880974,0.12165,87684.0,87679.0,0.01140523]
[1766537881182,0.01144,87683.0,87676.0,0.01140562]
[1766537881550,0.01144,87683.0,87677.0,0.01140549]
[1766537882159,0.01144,87683.0,87675.0,0.01140575]
[1766537882445,0.11737,87676.0,87672.0,0.01370904]
[1766537882764,0.11737,87674.0,87670.0,0.01370904]
[1766537882944,0.11737,87674.0,87670.0,0.0138162]
[1766537883433,0.11737,87674.0,87670.0,0.00010716]
[1766537884637,0.116821,87674.0,87670.0,0.00010716]
[1766537886722,0.11737,87671.0,87662.0,0.01144]
[1766537886943,0.117477,87670.0,87663.0,0.0684439]
[1766537887198,0.11737,87670.0,87664.0,0.01140719]
[1766537887381,0.11737,87670.0,87665.0,0.01140706]
[1766537887768,0.12881,87670.0,87665.0,0.01140706]
[1766537887981,0.12881,87670.0,87664.0,0.01140719]
[1766537888179,0.12881,87670.0,87662.0,0.01140745]
[1766537889523,0.14021641,87670.0,87658.0,0.02284797]
[1766537889707,0.12877654,87669.0,87659.0,0.01140784]
[1766537890048,0.12877654,87669.0,87660.0,0.01140771]
[1766537890202,0.01140667,87668.0,87659.0,0.01140784]
[1766537890404,0.12877667,87668.0,87659.0,0.01140784]
[1766537890606,0.01140732,87663.0,87653.0,0.01140862]
[1766537890856,0.12881,87662.0,87656.0,0.01140823]
[1766537891056,0.12881,87662.0,87653.0,0.06845163]
[1766537891269,0.12881,87662.0,87659.0,0.01140784]
[1766537891470,0.12881,87662.0,87653.0,0.01140862]
[1766537891684,0.14021745,87662.0,87652.0,0.01140875]
[1766537892076,0.12881,87662.0,87653.0,0.01140862]
[1766537892277,0.14021745,87662.0,87653.0,0.01140862]
[1766537892435,0.12881,87662.0,87654.0,0.01140849]
[1766537892811,0.12881,87662.0,87655.0,0.01140836]
[1766537893257,0.12881,87662.0,87656.0,0.01140823]
[1766537893600,0.12881,87662.0,87657.0,0.0114081]
[1766537893735,0.12881,87662.0,87655.0,0.01140836]
[1766537894358,0.12881,87662.0,87656.0,0.01140823]
[1766537895326,0.12881,87662.0,87655.0,0.01140836]
[1766537896099,0.12881,87662.0,87654.0,0.01140849]
[1766537896289,0.12881,87662.0,87655.0,0.01140836]
[1766537896485,0.12881,87662.0,87654.0,0.01140849]
[1766537896697,0.01140758,87661.0,87652.0,0.01140875]
[1766537896892,0.01140758,87661.0,87649.0,0.14153556]
[1766537896893,0.0114081,87657.0,87649.0,0.01144]
[1766537897122,0.11737,87652.0,87645.0,0.01144]
[1766537897298,0.11737,87652.0,87645.0,0.02284966]
[1766537897742,0.11737,87652.0,87645.0,0.01140966]
[1766537897900,0.11737,87652.0,87646.0,0.01140953]
[1766537900435,0.11737,87652.0,87644.0,0.01150979]
[1766537900867,0.12877875,87652.0,87644.0,0.0001]
[1766537901038,0.12877875,87652.0,87644.0,0.01150979]
[1766537901039,0.11737,87652.0,87644.0,0.01150979]
[1766537901448,0.11737,87652.0,87645.0,0.01140966]
[1766537901646,0.11737,87652.0,87644.0,0.01150979]
[1766537901877,0.11737,87652.0,87644.0,0.01024953]
[1766537902085,0.11737,87652.0,87645.0,0.01140966]
[1766537902380,0.11737,87652.0,87644.0,0.01024953]
[1766537902635,0.11737,87652.0,87646.0,0.01140953]
[1766537902811,0.11737,87652.0,87649.0,0.01140914]
[1766537903014,0.12881,87657.0,87647.0,0.0114094]
[1766537903220,0.1402181,87657.0,87647.0,0.0114094]
[1766537903414,0.01140823,87656.0,87647.0,0.0114094]
[1766537903622,0.11737,87656.0,87649.0,0.05]
[1766537903832,0.11737,87656.0,87649.0,0.06140914]
[1766537904031,0.11737,87656.0,87649.0,0.05]
[1766537905058,0.11737,87656.0,87649.0,0.06140914]
[1766537906412,0.11737,87656.0,87649.0,0.05]
[1766537906995,0.11737,87656.0,87649.0,0.06140914]
[1766537907957,0.12877823,87656.0,87649.0,0.05]
[1766537908703,0.01140836,87655.0,87649.0,0.05]
[1766537908910,0.12877823,87656.0,87649.0,0.05]
[1766537909108,0.01140836,87655.0,87649.0,0.05]
[1766537909408,0.01140849,87654.0,87649.0,0.05]
[1766537910056,0.12877823,87656.0,87649.0,0.05]
[1766537910261,0.11737,87656.0,87649.0,0.05]
[1766537910466,0.11737,87656.0,87649.0,0.06140914]
[1766537911072,0.11737,87656.0,87649.0,0.05]
[1766537911290,0.11737,87656.0,87650.0,0.01140901]
[1766537911492,0.0001,87664.0,87656.0,0.00055]
[1766537911660,0.01144,87661.0,87656.0,0.01140823]
[1766537911866,0.0001,87664.0,87656.0,0.01140823]
[1766537912091,0.0001,87664.0,87657.0,0.0114081]
[1766537912303,0.01144,87663.0,87658.0,0.01140797]
[1766537912505,0.01144,87663.0,87655.0,0.01140836]
[1766537912658,0.01144,87663.0,87652.0,0.15291207]
[1766537912659,0.02284732,87663.0,87652.0,0.08446]
[1766537912863,0.01140784,87659.0,87652.0,0.08446]
[1766537913286,0.06844786,87658.0,87649.0,0.05]
[1766537913464,0.01140823,87656.0,87649.0,0.05]
[1766537914070,0.12273,87656.0,87649.0,0.05]
[1766537914273,0.12273,87656.0,87651.0,0.01140888]
[1766537914817,0.12273,87656.0,87649.0,0.11845481]
[1766537915174,0.12273,87656.0,87653.0,0.01140862]
[1766537915500,0.01144,87660.0,87649.0,0.06140914]
[1766537915501,0.01140784,87659.0,87656.0,0.00055]
[1766537915902,0.01140797,87658.0,87649.0,0.06140914]
[1766537916087,0.01140784,87659.0,87649.0,0.06140914]
[1766537916379,0.1269981,87657.0,87649.0,0.05]
[1766537916584,0.12699836,87655.0,87647.0,0.01144]
[1766537916765,0.11559,87655.0,87647.0,0.0228494]
[1766537917404,0.11559,87655.0,87647.0,0.01144]
[1766537918595,0.12699836,87655.0,87647.0,0.01144]
[1766537918946,0.12699836,87655.0,87647.0,0.0228494]
[1766537919143,0.11559,87655.0,87647.0,0.0228494]
[1766537919373,0.12699836,87655.0,87647.0,0.0228494]
[1766537919609,0.11559,87655.0,87645.0,0.01140966]
[1766537919828,0.12703,87655.0,87646.0,0.01140953]
[1766537920472,0.13843836,87655.0,87647.0,0.0114094]
[1766537920687,0.13843836,87655.0,87645.0,0.01140966]
[1766537920912,0.13843836,87655.0,87646.0,0.01140953]
[1766537921144,0.11559,87653.0,87645.0,0.01140966]
[1766537921371,0.11559,87653.0,87644.0,0.01140979]
[1766537922240,0.11559,87649.0,87639.0,0.13006044]
[1766537922439,0.0114094,87647.0,87637.0,0.06849308]
[1766537922569,0.0114094,87647.0,87637.0,0.07990378]
[1766537922774,0.0114094,87647.0,87638.0,0.01141057]
[1766537923238,0.12703,87649.0,87638.0,0.01141057]
[1766537923437,0.12703,87649.0,87641.0,0.01141018]
[1766537923598,0.12703,87649.0,87643.0,0.01140992]
[1766537923918,0.12703,87649.0,87644.0,0.01140979]
[1766537924171,0.12703,87649.0,87643.0,0.01140992]
[1766537924375,0.12703,87649.0,87645.0,0.01140966]
[1766537924545,0.12703,87649.0,87646.0,0.01140953]
[1766537924795,0.12703,87649.0,87645.0,0.01140966]
[1766537925345,0.12703,87649.0,87646.0,0.01140953]
[1766537925758,0.12703,87649.0,87645.0,0.01140966]
[1766537925937,0.12703,87649.0,87646.0,0.01140953]
[1766537926306,0.12703,87649.0,87644.0,0.01140979]
[1766537926452,0.12703,87649.0,87645.0,0.01140966]
[1766537927683,0.12703,87649.0,87646.0,0.01140953]
[1766537928064,0.12703,87649.0,87645.0,0.01079809]
[1766537928697,0.12703,87649.0,87646.0,0.01140953]
[1766537928898,0.01144,87649.0,87646.0,0.01140953]
[1766537929067,0.01144,87649.0,87646.0,0.06845682]
[1766537929802,0.16123,87662.0,87652.0,0.01140875]
[1766537929999,0.02284758,87661.0,87652.0,0.01140875]
[1766537930296,0.13843758,87661.0,87653.0,0.01140862]